[Event "Fast Chess"]
[Site "ChessKid.com"]
[Date "2020.04.23"]
[Round "3"]
[White "Horvath, Alexander"]
[Black "Li, Tobias"]
[Result "1/2-1/2"]
[ECO "C55"]
[WhiteElo "1327"]
[BlackElo "1356"]
[Annotator "Patt!"]
[PlyCount "112"]
[EventDate "2020.??.??"]
[TimeControl "300+10"]
[WhiteClock "0:01:13"]
[BlackClock "0:01:48"]

1. e4 {[%emt 0:00:11]} e5 {[%emt 0:00:10]} 2. Nf3 {[%emt 0:00:13]} Nc6 {
[%emt 0:00:10]} 3. Nc3 {[%emt 0:00:11]} Nf6 {[%emt 0:00:11]} 4. Bc4 {[%emt 0:
00:10]} Bc5 {[%emt 0:00:10]} 5. Ng5 {[%emt 0:00:12]} O-O {[%emt 0:00:15]} 6.
Bxf7+ {[%emt 0:00:11]} Rxf7 {[%emt 0:00:11]} 7. Nxf7 {[%emt 0:00:10]} Kxf7 {
[%emt 0:00:09]} 8. O-O {[%emt 0:00:12]} d6 {[%emt 0:00:13]} 9. d3 {[%emt 0:00:
11]} Qe8 {[%emt 0:00:19]} 10. Bg5 {[%emt 0:00:12]} Qe6 {[%emt 0:00:13]} 11.
Bxf6 {[%emt 0:00:10]} Qxf6 {[%emt 0:00:12]} 12. Nd5 {[%emt 0:00:15]} Qg6 {
[%emt 0:00:15]} 13. Qf3+ {[%emt 0:00:38]} Kg8 {[%emt 0:00:29]} 14. b4 {[%emt 0:
00:18]} Be6 {[%emt 0:00:18]} 15. Nxc7 {[%emt 0:00:19]} Rc8 {[%emt 0:00:16]} 16.
Nxe6 {[%emt 0:00:14]} Qxe6 {[%emt 0:00:14]} 17. bxc5 {[%emt 0:00:11]} dxc5 {
[%emt 0:00:12]} 18. Qg3 {[%emt 0:00:16]} Nd4 {[%emt 0:00:14]} 19. f4 {[%emt 0:
00:13]} Ne2+ {[%emt 0:00:12]} 20. Kh1 {[%emt 0:00:16]} Nxg3+ {[%emt 0:00:09]}
21. hxg3 {[%emt 0:00:11]} exf4 {[%emt 0:00:10]} 22. gxf4 {[%emt 0:00:11]} Qh6+
{[%emt 0:00:12]} 23. Kg1 {[%emt 0:00:11]} Rf8 {[%emt 0:00:10]} 24. Rf3 {
[%emt 0:00:11]} Rxf4 {[%emt 0:00:13]} 25. Raf1 {[%emt 0:00:20]} Rxf3 {[%emt 0:
00:15]} 26. gxf3 {[%emt 0:00:11]} Qd2 {[%emt 0:00:16]} 27. e5 {[%emt 0:00:12]}
Qxc2 {[%emt 0:00:11]} 28. e6 {[%emt 0:00:11]} Qxd3 {[%emt 0:00:10]} 29. Re1 {
[%emt 0:00:21]} Kf8 {[%emt 0:00:31]} 30. f4 {[%emt 0:00:14]} Qd4+ {[%emt 0:00:
15]} 31. Kf1 {[%emt 0:00:12]} Qxf4+ {[%emt 0:00:11]} 32. Kg1 {[%emt 0:00:13]}
Ke7 {[%emt 0:00:14]} 33. Rf1 {[%emt 0:00:14]} Qe3+ {[%emt 0:00:15]} 34. Rf2 {
[%emt 0:00:13]} Qxe6 {[%emt 0:00:11]} 35. Kf1 {[%emt 0:00:11]} Kd7 {[%emt 0:00:
36]} 36. Rd2+ {[%emt 0:00:14]} Kc6 {[%emt 0:00:11]} 37. a4 {[%emt 0:00:13]} b5
{[%emt 0:00:12]} 38. axb5+ {[%emt 0:00:16]} Kxb5 {[%emt 0:00:10]} 39. Rb2+ {
[%emt 0:00:12]} Kc6 {[%emt 0:00:11]} 40. Rb1 {[%emt 0:00:14]} Qe4 {[%emt 0:00:
11]} 41. Ra1 {[%emt 0:00:16]} Qd3+ {[%emt 0:00:16]} 42. Kg2 {[%emt 0:00:14]}
Qe4+ {[%emt 0:00:11]} 43. Kh3 {[%emt 0:00:19]} Qf5+ {[%emt 0:00:11]} 44. Kg2 {
[%emt 0:00:15]} Qe5 {[%emt 0:00:12]} 45. Rxa7 {[%emt 0:00:14]} Qd5+ {[%emt 0:
00:13]} 46. Kf2 {[%emt 0:00:12]} c4 {[%emt 0:00:20]} 47. Rxg7 {[%emt 0:00:16]}
Qd4+ {[%emt 0:00:14]} 48. Ke2 {[%emt 0:00:12]} Qxg7 {[%emt 0:00:09]} 49. Kd2 {
[%emt 0:00:10]} c3+ {[%emt 0:00:53]} 50. Kc2 {[%emt 0:00:11]} Qg3 {[%emt 0:00:
11]} 51. Kc1 {[%emt 0:00:12]} h5 {[%emt 0:00:09]} 52. Kc2 {[%emt 0:00:13]} h4 {
[%emt 0:00:09]} 53. Kd1 {[%emt 0:00:10]} h3 {[%emt 0:00:09]} 54. Ke2 {[%emt 0:
00:10]} h2 {[%emt 0:00:10]} 55. Kf1 {[%emt 0:00:10]} c2 {[%emt 0:00:13]} 56.
Ke2 {[%emt 0:00:13]} c1=Q {[%emt 0:00:12] Game drawn by stalemate} 1/2-1/2

[Event "Fast Chess"]
[Site "ChessKid.com"]
[Date "2020.04.24"]
[Round "1"]
[White "Hlinka, Patrick"]
[Black "Stiedl, Dominik"]
[Result "1-0"]
[ECO "C23"]
[WhiteElo "1211"]
[BlackElo "1045"]
[Annotator "Gegenangriff"]
[PlyCount "51"]
[EventDate "2020.??.??"]
[TimeControl "600"]
[WhiteClock "0:07:18"]
[BlackClock "0:07:16"]

1. e4 {[%emt 0:00:01]} e5 {[%emt 0:00:02]} 2. Bc4 {[%emt 0:00:02]} Qf6 {
[%emt 0:00:02]} 3. h4 {[%emt 0:00:06]} Bc5 {[%emt 0:00:02]} 4. Nh3 {[%emt 0:00:
02]} d5 {[%emt 0:00:05]} 5. d3 {[%emt 0:00:03]} Bxh3 {[%emt 0:00:03]} 6. O-O {
[%emt 0:00:10]} Qg6 {[%emt 0:00:15]} 7. Qf3 {[%emt 0:00:23]} dxe4 $4 {[%emt 0:
00:02]} ({Gegenangriff} 7... Bg4 {gewinnt}) 8. Qxh3 {[%emt 0:00:02]} Ne7 {
[%emt 0:00:22]} 9. h5 {[%emt 0:00:03]} Qf5 {[%emt 0:00:02]} 10. g4 {[%emt 0:00:
23]} Qf4 {[%emt 0:00:16]} 11. Bxf4 {[%emt 0:00:04]} exf4 {[%emt 0:00:02]} 12.
dxe4 {[%emt 0:00:03]} f3 {[%emt 0:00:08]} 13. Qxf3 {[%emt 0:00:03]} O-O {
[%emt 0:00:03]} 14. Bd3 {[%emt 0:00:03]} f6 {[%emt 0:00:04]} 15. e5 {[%emt 0:
00:02]} fxe5 {[%emt 0:00:05]} 16. Qe4 {[%emt 0:00:03]} g6 {[%emt 0:00:12]} 17.
hxg6 {[%emt 0:00:04]} hxg6 {[%emt 0:00:02]} 18. Bc4+ {[%emt 0:00:06]} Kh7 {
[%emt 0:00:05]} 19. Nc3 {[%emt 0:00:08]} b6 {[%emt 0:00:08]} 20. Kg2 {[%emt 0:
00:02]} a5 {[%emt 0:00:10]} 21. Rh1+ {[%emt 0:00:02]} Kg7 {[%emt 0:00:04]} 22.
Qxe5+ {[%emt 0:00:11]} Rf6 {[%emt 0:00:11]} 23. Nd5 {[%emt 0:00:05]} Bd6 {
[%emt 0:00:05]} 24. Qe4 {[%emt 0:00:26]} Nxd5 {[%emt 0:00:06]} 25. Qxd5 {
[%emt 0:00:02]} Bc5 {[%emt 0:00:08]} 26. Qg8# {[%emt 0:00:06] GoldMusicalTaxi
won by checkmate} 1-0

[Event "Fast Chess"]
[Site "ChessKid.com"]
[Date "2020.04.24"]
[Round "1"]
[White "Hlinka, Patricia"]
[Black "Rosenkranz, Benjamin"]
[Result "0-1"]
[ECO "A00"]
[WhiteElo "975"]
[BlackElo "1146"]
[PlyCount "61"]
[EventDate "2020.??.??"]
[TimeControl "600"]
[WhiteClock "0:06:22"]
[BlackClock "0:05:25"]

1. Na3 {[%emt 0:00:02]} e5 {[%emt 0:00:06]} 2. Nh3 {[%emt 0:00:04]} Nc6 {
[%emt 0:00:02]} 3. e4 {[%emt 0:00:04]} d6 {[%emt 0:00:02]} 4. d3 {[%emt 0:00:
05]} Nf6 {[%emt 0:00:11]} 5. Ng1 {[%emt 0:00:06]} Bg4 {[%emt 0:00:03]} 6. f3 {
[%emt 0:00:06]} Bd7 {[%emt 0:00:03]} 7. c4 {[%emt 0:00:12]} Qe7 {[%emt 0:00:16]
} 8. h4 {[%emt 0:00:09]} O-O-O {[%emt 0:00:05]} 9. Be2 {[%emt 0:00:09]} Be6 {
[%emt 0:00:14]} 10. Bd2 {[%emt 0:00:16]} Nh5 {[%emt 0:00:11]} 11. Nb1 {[%emt 0:
00:10]} Ng3 {[%emt 0:00:05]} 12. Rh2 {[%emt 0:00:09]} Nxe2 {[%emt 0:00:02]} 13.
Kxe2 {[%emt 0:00:04]} b6 {[%emt 0:00:14]} 14. Ke1 {[%emt 0:00:07]} Rd7 {
[%emt 0:00:09]} 15. Ne2 {[%emt 0:00:02]} Qd8 {[%emt 0:00:03]} 16. Rh1 {[%emt 0:
00:03]} Be7 {[%emt 0:00:03]} 17. h5 {[%emt 0:00:15]} Bh4+ {[%emt 0:00:04]} 18.
Kf1 {[%emt 0:00:12]} Bf6 {[%emt 0:00:07]} 19. g3 {[%emt 0:00:06]} Qe7 {[%emt 0:
00:19]} 20. Ke1 {[%emt 0:00:12]} Bg5 {[%emt 0:00:09]} 21. Bxg5 {[%emt 0:00:04]}
Qxg5 {[%emt 0:00:03]} 22. Rg1 {[%emt 0:00:10]} Qxh5 {[%emt 0:00:06]} 23. Kf1 {
[%emt 0:00:00]} Qxf3+ {[%emt 0:00:05]} 24. Ke1 {[%emt 0:00:08]} Qe3 {[%emt 0:
00:09]} 25. Rf1 {[%emt 0:00:07]} Nb4 {[%emt 0:00:14]} 26. a3 {[%emt 0:00:06]}
Nc6 {[%emt 0:00:09]} 27. Rh1 {[%emt 0:00:21]} Bg4 {[%emt 0:00:07]} 28. Nbc3 {
[%emt 0:00:14]} Bf3 {[%emt 0:00:09]} 29. Nb5 {[%emt 0:00:24]} Bxh1 {[%emt 0:00:
08]} 30. Nxa7+ {[%emt 0:00:13]} Nxa7 {[%emt 0:00:02]} 31. g4 {[%emt 0:00:15]
FineBeamingStage won by resignation} 0-1

[Event "Fast Chess"]
[Site "ChessKid.com"]
[Date "2020.04.24"]
[Round "2"]
[White "Rosenkranz, Benjamin"]
[Black "Hlinka, Patrick"]
[Result "1-0"]
[ECO "C23"]
[WhiteElo "1156"]
[BlackElo "1202"]
[PlyCount "111"]
[EventDate "2020.??.??"]
[TimeControl "600"]
[WhiteClock "0:04:13"]
[BlackClock "0:04:54"]

1. e4 {[%emt 0:00:04]} e5 {[%emt 0:00:03]} 2. Nf3 {[%emt 0:00:05]} Bc5 {
[%emt 0:00:03]} 3. Bc4 {[%emt 0:00:08]} d6 {[%emt 0:00:04]} 4. d3 {[%emt 0:00:
04]} Bg4 {[%emt 0:00:05]} 5. O-O {[%emt 0:00:07]} Bxf3 {[%emt 0:00:04]} 6. Qxf3
{[%emt 0:00:03]} f6 {[%emt 0:00:07]} 7. Bb5+ {[%emt 0:00:10]} c6 {[%emt 0:00:
29]} 8. Bc4 {[%emt 0:00:05]} d5 {[%emt 0:00:06]} 9. exd5 {[%emt 0:00:04]} cxd5
{[%emt 0:00:03]} 10. Bxd5 {[%emt 0:00:03]} Nc6 {[%emt 0:00:14]} 11. Bxc6+ {
[%emt 0:00:07]} bxc6 {[%emt 0:00:03]} 12. Qxc6+ {[%emt 0:00:03]} Ke7 {[%emt 0:
00:05]} 13. Qxc5+ {[%emt 0:00:02]} Kf7 {[%emt 0:00:03]} 14. Nc3 {[%emt 0:00:07]
} Rc8 {[%emt 0:00:03]} 15. Qd5+ {[%emt 0:00:04]} Qxd5 {[%emt 0:00:04]} 16. Nxd5
{[%emt 0:00:02]} Rxc2 {[%emt 0:00:03]} 17. Nb4 {[%emt 0:00:07]} Rc8 {[%emt 0:
00:14]} 18. Be3 {[%emt 0:00:10]} Ra8 {[%emt 0:00:05]} 19. Nc6 {[%emt 0:00:04]}
f5 {[%emt 0:00:21]} 20. Nxa7 {[%emt 0:00:04]} f4 {[%emt 0:00:02]} 21. Bc5 {
[%emt 0:00:04]} Ne7 {[%emt 0:00:03]} 22. Nb5 {[%emt 0:00:04]} Rhc8 {[%emt 0:00:
10]} 23. Bxe7 {[%emt 0:00:03]} Kxe7 {[%emt 0:00:02]} 24. Nc3 {[%emt 0:00:05]}
Rab8 {[%emt 0:00:03]} 25. Rfe1 {[%emt 0:00:11]} Kf6 {[%emt 0:00:06]} 26. Nd5+ {
[%emt 0:00:05]} Ke6 {[%emt 0:00:05]} 27. Nc3 {[%emt 0:00:03]} Rxb2 {[%emt 0:00:
03]} 28. Na4 {[%emt 0:00:08]} Rb4 {[%emt 0:00:09]} 29. d4 {[%emt 0:00:16]} Rxa4
{[%emt 0:00:03]} 30. dxe5 {[%emt 0:00:04]} Rc5 {[%emt 0:00:20]} 31. g4 {
[%emt 0:00:13]} fxg3 {[%emt 0:00:03]} 32. hxg3 {[%emt 0:00:04]} h5 {[%emt 0:00:
09]} 33. Kg2 {[%emt 0:00:06]} g5 {[%emt 0:00:05]} 34. Re3 {[%emt 0:00:10]} h4 {
[%emt 0:00:04]} 35. gxh4 {[%emt 0:00:04]} gxh4 {[%emt 0:00:02]} 36. a3 {
[%emt 0:00:08]} Rd5 {[%emt 0:00:15]} 37. f4 {[%emt 0:00:10]} Rc5 {[%emt 0:00:
33]} 38. f5+ {[%emt 0:00:05]} Kxf5 {[%emt 0:00:02]} 39. e6 {[%emt 0:00:03]} Rc8
{[%emt 0:00:05]} 40. e7 {[%emt 0:00:03]} Raa8 {[%emt 0:00:02]} 41. a4 {[%emt 0:
00:05]} Rd8 {[%emt 0:00:01]} 42. exd8=Q {[%emt 0:00:05]} Rxd8 {[%emt 0:00:01]}
43. a5 {[%emt 0:00:04]} Ra8 {[%emt 0:00:04]} 44. a6 {[%emt 0:00:04]} Kf4 {
[%emt 0:00:02]} 45. Rf3+ {[%emt 0:00:06]} Kg4 {[%emt 0:00:02]} 46. a7 {[%emt 0:
00:06]} Kh5 {[%emt 0:00:09]} 47. Ra5+ {[%emt 0:00:07]} Kg4 {[%emt 0:00:03]} 48.
Ra4+ {[%emt 0:00:04]} Kh5 {[%emt 0:00:05]} 49. Rd3 {[%emt 0:00:03]} Kg5 {
[%emt 0:00:05]} 50. Rd5+ {[%emt 0:00:14]} Kh6 {[%emt 0:00:05]} 51. Ra6+ {
[%emt 0:00:04]} Kg7 {[%emt 0:00:05]} 52. Rd7+ {[%emt 0:00:03]} Kf8 {[%emt 0:00:
03]} 53. Rh6 {[%emt 0:00:03]} Ke8 {[%emt 0:00:03]} 54. Rb7 {[%emt 0:00:03]} h3+
{[%emt 0:00:13]} 55. Kxh3 {[%emt 0:00:03]} Kd8 {[%emt 0:00:03]} 56. Rh8# {
[%emt 0:00:02] FineBeamingStage won by checkmate} 1-0

[Event "Fast Chess"]
[Site "ChessKid.com"]
[Date "2020.04.24"]
[Round "2"]
[White "Stiedl, Dominik"]
[Black "Hlinka, Patricia"]
[Result "1-0"]
[ECO "B00"]
[WhiteElo "1052"]
[BlackElo "969"]
[PlyCount "30"]
[EventDate "2020.??.??"]
[TimeControl "600"]
[WhiteClock "0:07:59"]
[BlackClock "0:09:01"]

1. e4 {[%emt 0:00:02]} Nh6 {[%emt 0:00:03]} 2. Qf3 {[%emt 0:00:01]} Nc6 {
[%emt 0:00:12]} 3. Bc4 {[%emt 0:00:03]} d5 {[%emt 0:00:10]} 4. exd5 {[%emt 0:
00:03]} Nb8 {[%emt 0:00:04]} 5. d4 {[%emt 0:00:07]} Kd7 {[%emt 0:00:02]} 6.
Bxh6 {[%emt 0:00:06]} gxh6 {[%emt 0:00:03]} 7. Qe3 {[%emt 0:00:02]} b6 {
[%emt 0:00:11]} 8. Bb5+ {[%emt 0:00:05]} c6 {[%emt 0:00:06]} 9. dxc6+ {[%emt 0:
00:01]} Kc7 {[%emt 0:00:05]} 10. Qe5+ {[%emt 0:00:07]} Qd6 {[%emt 0:00:26]} 11.
Qxh8 {[%emt 0:00:05]} Bg4 {[%emt 0:00:06]} 12. Qxf8 {[%emt 0:00:05]} f5 {
[%emt 0:00:08]} 13. h3 {[%emt 0:00:04]} Bh5 {[%emt 0:00:08]} 14. f3 {[%emt 0:
00:05]} Nxc6 {[%emt 0:00:10]} 15. Qxa8 {[%emt 0:00:03]} Nb8 {[%emt 0:00:06]
MadCuteMatter won by resignation} 1-0

[Event "Fast Chess"]
[Site "ChessKid.com"]
[Date "2020.04.24"]
[Round "3"]
[White "Stiedl, Dominik"]
[Black "Rosenkranz, Benjamin"]
[Result "0-1"]
[ECO "C23"]
[WhiteElo "1047"]
[BlackElo "1162"]
[PlyCount "150"]
[EventDate "2020.??.??"]
[TimeControl "600"]
[WhiteClock "0:02:48"]
[BlackClock "0:04:33"]

1. e4 {[%emt 0:00:01]} e5 {[%emt 0:00:02]} 2. Qf3 {[%emt 0:00:01]} Nf6 {
[%emt 0:00:03]} 3. Bc4 {[%emt 0:00:05]} Nc6 {[%emt 0:00:03]} 4. c3 {[%emt 0:00:
03]} Bc5 {[%emt 0:00:06]} 5. b4 {[%emt 0:00:04]} Be7 {[%emt 0:00:04]} 6. b5 {
[%emt 0:00:02]} Nb8 {[%emt 0:00:09]} 7. g4 {[%emt 0:00:08]} O-O {[%emt 0:00:05]
} 8. g5 {[%emt 0:00:02]} Ne8 {[%emt 0:00:08]} 9. Nh3 {[%emt 0:00:09]} Bc5 {
[%emt 0:00:18]} 10. O-O {[%emt 0:00:10]} Be7 {[%emt 0:00:09]} 11. Kh1 {[%emt 0:
00:02]} Bxg5 {[%emt 0:00:03]} 12. Nxg5 {[%emt 0:00:01]} Qxg5 {[%emt 0:00:04]}
13. Rg1 {[%emt 0:00:04]} Qh6 {[%emt 0:00:08]} 14. d4 {[%emt 0:00:05]} Qf6 {
[%emt 0:00:07]} 15. Qg3 {[%emt 0:00:11]} g6 {[%emt 0:00:04]} 16. dxe5 {[%emt 0:
00:02]} Qe7 {[%emt 0:00:12]} 17. Bg5 {[%emt 0:00:06]} Qc5 {[%emt 0:00:10]} 18.
h4 {[%emt 0:00:24]} Qxc4 {[%emt 0:00:08]} 19. Na3 {[%emt 0:00:07]} Qxe4+ {
[%emt 0:00:05]} 20. Qg2 {[%emt 0:00:12]} Qxg2+ {[%emt 0:00:04]} 21. Rxg2 {
[%emt 0:00:01]} c6 {[%emt 0:00:08]} 22. bxc6 {[%emt 0:00:02]} Nxc6 {[%emt 0:00:
05]} 23. Bh6 {[%emt 0:00:07]} Ng7 {[%emt 0:00:05]} 24. e6 {[%emt 0:00:05]} dxe6
{[%emt 0:00:04]} 25. c4 {[%emt 0:00:09]} Nd4 {[%emt 0:00:08]} 26. Rd1 {[%emt 0:
00:04]} Ne2 {[%emt 0:00:09]} 27. Re1 {[%emt 0:00:07]} Nd4 {[%emt 0:00:07]} 28.
Rd1 {[%emt 0:00:04]} Nc6 {[%emt 0:00:05]} 29. Nb5 {[%emt 0:00:05]} a6 {[%emt 0:
00:11]} 30. Nc7 {[%emt 0:00:02]} Rb8 {[%emt 0:00:03]} 31. Nxa6 {[%emt 0:00:21]}
bxa6 {[%emt 0:00:03]} 32. Bxg7 {[%emt 0:00:05]} Kxg7 {[%emt 0:00:02]} 33. Rgg1
{[%emt 0:00:05]} Bb7 {[%emt 0:00:05]} 34. a4 {[%emt 0:00:03]} Ne5+ {[%emt 0:00:
04]} 35. f3 {[%emt 0:00:01]} Nxf3 {[%emt 0:00:03]} 36. Rgf1 {[%emt 0:00:02]}
Ne5+ {[%emt 0:00:05]} 37. Kh2 {[%emt 0:00:01]} Bc6 {[%emt 0:00:11]} 38. c5 {
[%emt 0:00:03]} Rb3 {[%emt 0:00:06]} 39. Rb1 {[%emt 0:00:03]} Rc3 {[%emt 0:00:
07]} 40. Rbc1 {[%emt 0:00:02]} Rxc1 {[%emt 0:00:11]} 41. Rxc1 {[%emt 0:00:02]}
Nf3+ {[%emt 0:00:04]} 42. Kg2 {[%emt 0:00:02]} Ne1+ {[%emt 0:00:09]} 43. Kf1 {
[%emt 0:00:02]} Nd3 {[%emt 0:00:04]} 44. Rc3 {[%emt 0:00:05]} Nb2 {[%emt 0:00:
09]} 45. Rb3 {[%emt 0:00:03]} Nc4 {[%emt 0:00:06]} 46. Rc3 {[%emt 0:00:03]} Bd5
{[%emt 0:00:04]} 47. Kf2 {[%emt 0:00:12]} f5 {[%emt 0:00:03]} 48. Ke1 {[%emt 0:
00:01]} e5 {[%emt 0:00:06]} 49. Ke2 {[%emt 0:00:02]} e4 {[%emt 0:00:10]} 50. h5
{[%emt 0:00:08]} gxh5 {[%emt 0:00:05]} 51. Kd1 {[%emt 0:00:10]} f4 {[%emt 0:00:
04]} 52. Ke1 {[%emt 0:00:01]} Rb8 {[%emt 0:00:04]} 53. Ke2 {[%emt 0:00:04]}
Rb2+ {[%emt 0:00:04]} 54. Kd1 {[%emt 0:00:04]} Ne3+ {[%emt 0:00:05]} 55. Kc1 {
[%emt 0:00:02]} Re2 {[%emt 0:00:03]} 56. Kb1 {[%emt 0:00:07]} f3 {[%emt 0:00:
08]} 57. c6 {[%emt 0:00:07]} Bxc6 {[%emt 0:00:07]} 58. Rxc6 {[%emt 0:00:02]} f2
{[%emt 0:00:02]} 59. Rc7+ {[%emt 0:00:02]} Kg6 {[%emt 0:00:02]} 60. Rc6+ {
[%emt 0:00:01]} Kg5 {[%emt 0:00:01]} 61. Rc5+ {[%emt 0:00:01]} Kf4 {[%emt 0:00:
02]} 62. Rc1 {[%emt 0:00:03]} h4 {[%emt 0:00:05]} 63. a5 {[%emt 0:00:02]} h3 {
[%emt 0:00:02]} 64. Rc2 {[%emt 0:00:02]} f1=Q+ {[%emt 0:00:06]} 65. Kb2 {
[%emt 0:00:03]} Rxc2+ {[%emt 0:00:03]} 66. Kb3 {[%emt 0:00:02]} Qc4+ {[%emt 0:
00:03]} 67. Ka3 {[%emt 0:00:02]} Rc1 {[%emt 0:00:06]} 68. Kb2 {[%emt 0:00:03]}
Nd1+ {[%emt 0:00:06]} 69. Ka3 {[%emt 0:00:04]} Ne3 {[%emt 0:00:10]} 70. Kb2 {
[%emt 0:00:02]} h2 {[%emt 0:00:05]} 71. Ka3 {[%emt 0:00:03]} h1=Q {[%emt 0:00:
11]} 72. Kb2 {[%emt 0:00:02]} Qh2+ {[%emt 0:00:03]} 73. Ka3 {[%emt 0:00:02]}
Qh6 {[%emt 0:00:10]} 74. Kb2 {[%emt 0:00:03]} Rc2+ {[%emt 0:00:03]} 75. Kb1 {
[%emt 0:00:03]} Qh1# {[%emt 0:00:03] FineBeamingStage won by checkmate} 0-1

[Event "Fast Chess"]
[Site "ChessKid.com"]
[Date "2020.04.24"]
[Round "1"]
[White "Georgiev, Maximilian"]
[Black "Li, Tobias"]
[Result "1-0"]
[ECO "C50"]
[WhiteElo "1472"]
[BlackElo "1338"]
[Annotator "Fesselung"]
[PlyCount "85"]
[EventDate "2020.??.??"]
[TimeControl "600"]
[WhiteClock "0:06:17"]
[BlackClock "0:07:00"]

1. e4 {[%emt 0:00:02]} e5 {[%emt 0:00:05]} 2. Nf3 {[%emt 0:00:01]} Nc6 {
[%emt 0:00:03]} 3. Bc4 {[%emt 0:00:01]} Bc5 {[%emt 0:00:05]} 4. O-O {[%emt 0:
00:02]} Nf6 {[%emt 0:00:01]} 5. Nc3 {[%emt 0:00:03]} O-O {[%emt 0:00:01]} 6. h3
{[%emt 0:00:01]} h6 {[%emt 0:00:02]} 7. a3 {[%emt 0:00:01]} a6 {[%emt 0:00:02]}
8. d3 {[%emt 0:00:00]} d6 {[%emt 0:00:03]} 9. Be3 {[%emt 0:00:02]} Bxe3 {
[%emt 0:00:05]} 10. fxe3 {[%emt 0:00:01]} Re8 {[%emt 0:00:04]} 11. Nd5 {
[%emt 0:00:03]} Nxd5 {[%emt 0:00:03]} 12. Bxd5 {[%emt 0:00:00]} Ne7 {[%emt 0:
00:03]} 13. Ba2 {[%emt 0:00:02]} Nc6 {[%emt 0:00:03]} 14. d4 {[%emt 0:00:02]}
exd4 {[%emt 0:00:03]} 15. exd4 {[%emt 0:00:01]} Rxe4 {[%emt 0:00:08]} 16. c3 {
[%emt 0:00:02]} Re8 {[%emt 0:00:06]} 17. Bb1 {[%emt 0:00:02]} Qf6 {[%emt 0:00:
29]} 18. Nh2 {[%emt 0:00:10]} Qe7 {[%emt 0:00:10]} 19. Qd3 {[%emt 0:00:04]}
Qe3+ {[%emt 0:00:03]} 20. Qxe3 {[%emt 0:00:09]} Rxe3 {[%emt 0:00:04]} 21. Bc2 {
[%emt 0:00:04]} Re2 {[%emt 0:00:06]} 22. Bb3 {[%emt 0:00:07]} Rxb2 {[%emt 0:00:
02]} 23. Bxf7+ {[%emt 0:00:03]} Kh8 {[%emt 0:00:05]} 24. Bg6 {[%emt 0:00:06]}
Be6 {[%emt 0:00:17]} 25. Rae1 {[%emt 0:00:14]} Bc4 {[%emt 0:00:03]} 26. Rf2 {
[%emt 0:00:05]} Rxf2 {[%emt 0:00:06]} 27. Kxf2 {[%emt 0:00:01]} Rf8+ {[%emt 0:
00:02]} 28. Kg1 {[%emt 0:00:04]} Rf6 {[%emt 0:00:03]} 29. Re8+ {[%emt 0:00:03]}
Bg8 {[%emt 0:00:02]} 30. Be4 {[%emt 0:00:18]} g5 {[%emt 0:00:04]} 31. Bd5 {
[%emt 0:00:03]} Rg6 {[%emt 0:00:05]} 32. Be4 {[%emt 0:00:07]} Rg7 {[%emt 0:00:
10]} 33. Ng4 {[%emt 0:00:07]} Rd7 {[%emt 0:00:12]} 34. Nf6 {[%emt 0:00:09]} Rg7
{[%emt 0:00:08]} 35. Bd5 {[%emt 0:00:04]} Ne7 {[%emt 0:00:02]} 36. Ba2 {
[%emt 0:00:04]} c5 {[%emt 0:00:17]} 37. dxc5 {[%emt 0:00:04]} dxc5 {[%emt 0:00:
01]} 38. Nh5 {[%emt 0:00:05]} Rf7 {[%emt 0:00:05]} 39. Bxf7 {[%emt 0:00:05]}
Kh7 {[%emt 0:00:04]} 40. Nf6+ {[%emt 0:00:05]} Kg7 {[%emt 0:00:03]} 41. Bxg8 {
[%emt 0:00:06]} Nxg8 {[%emt 0:00:01]} 42. Nxg8 {[%emt 0:00:05]} Kf7 {[%emt 0:
00:03]} 43. Rb8 {[%emt 0:00:03] TallSnazzyBall won by resignation} 1-0

[Event "Fast Chess"]
[Site "ChessKid.com"]
[Date "2020.04.24"]
[Round "2"]
[White "Dai, Lana"]
[Black "Georgiev, Maximilian"]
[Result "0-1"]
[ECO "C55"]
[WhiteElo "1265"]
[BlackElo "1476"]
[Annotator "Mattdrohungen"]
[PlyCount "46"]
[EventDate "2020.??.??"]
[TimeControl "600"]
[WhiteClock "0:08:44"]
[BlackClock "0:08:16"]

1. e4 {[%emt 0:00:01]} e5 {[%emt 0:00:01]} 2. Nf3 {[%emt 0:00:02]} Nc6 {
[%emt 0:00:01]} 3. Nc3 {[%emt 0:00:02]} Nf6 {[%emt 0:00:03]} 4. Bc4 {[%emt 0:
00:01]} h6 {[%emt 0:00:01]} 5. a3 {[%emt 0:00:02]} Bc5 {[%emt 0:00:03]} 6. h3 {
[%emt 0:00:02]} O-O {[%emt 0:00:01]} 7. O-O {[%emt 0:00:01]} Be7 {[%emt 0:00:
01]} 8. d3 {[%emt 0:00:01]} d6 {[%emt 0:00:01]} 9. Nd5 {[%emt 0:00:08]} Nxd5 {
[%emt 0:00:03]} 10. Bxd5 {[%emt 0:00:01]} a6 {[%emt 0:00:03]} 11. Bxc6 {
[%emt 0:00:02]} bxc6 {[%emt 0:00:02]} 12. d4 {[%emt 0:00:06]} exd4 {[%emt 0:00:
05]} 13. Nxd4 {[%emt 0:00:02]} d5 {[%emt 0:00:02]} 14. Nxc6 {[%emt 0:00:01]}
Qd6 {[%emt 0:00:03]} 15. exd5 {[%emt 0:00:04]} Bb7 {[%emt 0:00:05]} 16. Nxe7+ {
[%emt 0:00:05]} Qxe7 {[%emt 0:00:04]} 17. c4 {[%emt 0:00:08]} Rfe8 {[%emt 0:00:
06]} 18. Qd2 {[%emt 0:00:14]} Qd7 {[%emt 0:00:06]} 19. Qd3 {[%emt 0:00:16]} c6
{[%emt 0:00:05]} 20. Qg3 {[%emt 0:00:05]} cxd5 {[%emt 0:00:10]} 21. Bxh6 {
[%emt 0:00:03]} g6 {[%emt 0:00:02]} 22. cxd5 {[%emt 0:00:15]} Qxd5 {[%emt 0:00:
06]} 23. Qc3 $4 {[%emt 0:00:04]} Qxg2# {[%emt 0:00:02] TallSnazzyBall won by
checkmate} 0-1